[Event "Titled Tuesday Blitz July 11 Late 2023"]
[White "Durarbayli, Vasif"]
[Black "Chen, Justin"]
[WhiteFideId "13402935"]
[BlackFideId "2098199"]
[WhiteElo "2917"]
[BlackElo "2612"]
[Result "1-0"]
[Round "5"]
[TimeControl "180+2"]
[Date "2023.07.11"]
[WhiteClock "0:00:17"]
[BlackClock "0:00:16"]
[Board "26"]

1. e4 {[%clk 0:03:00]}  c5 {[%clk 0:02:59]} 2. Nf3 {[%clk 0:03:00]}  Nc6 {[%clk 0:03:00]} 3. d4 {[%clk 0:02:59]}  cxd4 {[%clk 0:03:01]} 4. Nxd4 {[%clk 0:02:59]}  Nf6 {[%clk 0:03:01]} 5. Nc3 {[%clk 0:03:00]}  d6 {[%clk 0:03:02]} 6. f3 {[%clk 0:02:58]}  Qb6 {[%clk 0:02:53]} 7. Nb3 {[%clk 0:02:55]}  e6 {[%clk 0:02:49]} 8. Qe2 {[%clk 0:02:54]}  Be7 {[%clk 0:02:49]} 9. Be3 {[%clk 0:02:55]}  Qc7 {[%clk 0:02:49]} 10. O-O-O {[%clk 0:02:55]}  a6 {[%clk 0:02:46]} 11. g4 {[%clk 0:02:49]}  b5 {[%clk 0:02:45]} 12. g5 {[%clk 0:02:50]}  Nd7 {[%clk 0:02:43]} 13. Qg2 {[%clk 0:02:50]}  Bb7 {[%clk 0:02:41]} 14. h4 {[%clk 0:02:48]}  Nb6 {[%clk 0:02:28]} 15. h5 {[%clk 0:02:48]}  Ne5 {[%clk 0:02:28]} 16. Kb1 {[%clk 0:02:46]}  b4 {[%clk 0:02:25]} 17. Ne2 {[%clk 0:02:43]}  a5 {[%clk 0:02:24]} 18. g6 {[%clk 0:02:41]}  hxg6 {[%clk 0:02:23]} 19. hxg6 {[%clk 0:02:42]}  Rxh1 {[%clk 0:02:22]} 20. gxf7+ {[%clk 0:02:43]}  Kxf7 {[%clk 0:02:20]} 21. Qxh1 {[%clk 0:02:43]}  Nbc4 {[%clk 0:02:12]} 22. Bc1 {[%clk 0:02:30]}  Rc8 {[%clk 0:02:11]} 23. Nbd4 {[%clk 0:02:22]}  Bf6 {[%clk 0:02:03]} 24. Bh3 {[%clk 0:02:10]}  Re8 {[%clk 0:01:59]} 25. Nf4 {[%clk 0:01:44]}  Bc8 {[%clk 0:01:46]} 26. Nh5 {[%clk 0:01:44]}  Ke7 {[%clk 0:01:36]} 27. f4 {[%clk 0:01:29]}  Nf7 {[%clk 0:01:29]} 28. Qg2 {[%clk 0:01:17]}  e5 {[%clk 0:01:05]} 29. Bxc8 {[%clk 0:01:08]}  exd4 {[%clk 0:01:05]} 30. Ba6 {[%clk 0:00:43]}  Ne3 {[%clk 0:00:55]} 31. Bxe3 {[%clk 0:00:43]}  dxe3 {[%clk 0:00:55]} 32. Nxg7 {[%clk 0:00:39]}  Bxg7 {[%clk 0:00:54]} 33. Qxg7 {[%clk 0:00:40]}  Qc5 {[%clk 0:00:44]} 34. b3 {[%clk 0:00:24]}  Qh5 {[%clk 0:00:28]} 35. Qd4 {[%clk 0:00:14]}  Qf3 {[%clk 0:00:20]} 36. Bc4 {[%clk 0:00:11]}  Rh8 {[%clk 0:00:10]} 37. e5 {[%clk 0:00:05]}  Rh1 {[%clk 0:00:04]} 38. exd6+ {[%clk 0:00:05]}  Kf8 {[%clk 0:00:05]} 39. Rxh1 {[%clk 0:00:04]}  Qxh1+ {[%clk 0:00:06]} 40. Kb2 {[%clk 0:00:05]}  Qc6 {[%clk 0:00:01]} 41. Bxf7 {[%clk 0:00:03]}  Kxf7 {[%clk 0:00:02]} 42. d7 {[%clk 0:00:02]}  Qc3+ {[%clk 0:00:02]} 43. Qxc3 {[%clk 0:00:01]}  bxc3+ {[%clk 0:00:02]} 44. Kxc3 {[%clk 0:00:02]}  Ke7 {[%clk 0:00:03]} 45. Kd3 {[%clk 0:00:02]}  e2 {[%clk 0:00:04]} 46. Kxe2 {[%clk 0:00:03]}  Kxd7 {[%clk 0:00:05]} 47. Kd3 {[%clk 0:00:04]}  Ke7 {[%clk 0:00:06]} 48. Kc3 {[%clk 0:00:05]}  Kf6 {[%clk 0:00:06]} 49. Kb2 {[%clk 0:00:05]}  Kf5 {[%clk 0:00:06]} 50. Ka3 {[%clk 0:00:06]}  Kxf4 {[%clk 0:00:07]} 51. Ka4 {[%clk 0:00:07]}  Ke4 {[%clk 0:00:07]} 52. Kxa5 {[%clk 0:00:08]}  Kd4 {[%clk 0:00:08]} 53. b4 {[%clk 0:00:09]}  Kc3 {[%clk 0:00:09]} 54. b5 {[%clk 0:00:10]}  Kb2 {[%clk 0:00:10]} 55. b6 {[%clk 0:00:11]}  Kc3 {[%clk 0:00:11]} 56. b7 {[%clk 0:00:11]}  Kb2 {[%clk 0:00:12]} 57. Kb6 {[%clk 0:00:12]}  Ka1 {[%clk 0:00:13]} 58. c4 {[%clk 0:00:12]}  Kb2 {[%clk 0:00:14]} 59. c5 {[%clk 0:00:13]}  Kc2 {[%clk 0:00:15]} 60. c6 {[%clk 0:00:14]}  Kc3 {[%clk 0:00:16]} 61. c7 {[%clk 0:00:15]}  Kc4 {[%clk 0:00:16]} 62. a4 {[%clk 0:00:15]}  Kb4 {[%clk 0:00:17]} 63. a5 {[%clk 0:00:16]}  Ka4 {[%clk 0:00:16]} 64. a6 {[%clk 0:00:17]} 1-0


[Site "https://www.chess.com"]

[Event "Titled Tuesday Blitz July 11 Late 2023"]
[White "Maksimovic, Bojan"]
[Black "Manukyan, Artyom"]
[WhiteFideId "14408120"]
[BlackFideId "13305786"]
[WhiteElo "2840"]
[BlackElo "2578"]
[Result "1-0"]
[Round "5"]
[TimeControl "180+2"]
[Date "2023.07.11"]
[WhiteClock "0:00:17"]
[BlackClock "0:00:00"]
[Board "31"]

1. Nf3 {[%clk 0:03:00]}  d5 {[%clk 0:02:57]} 2. g3 {[%clk 0:03:01]}  e6 {[%clk 0:02:57]} 3. Bg2 {[%clk 0:03:01]}  Nf6 {[%clk 0:02:58]} 4. O-O {[%clk 0:03:02]}  Be7 {[%clk 0:02:59]} 5. d3 {[%clk 0:03:03]}  O-O {[%clk 0:03:00]} 6. Nbd2 {[%clk 0:03:04]}  a5 {[%clk 0:03:00]} 7. a4 {[%clk 0:03:03]}  Nc6 {[%clk 0:02:59]} 8. Re1 {[%clk 0:03:03]}  Re8 {[%clk 0:02:54]} 9. e4 {[%clk 0:03:02]}  dxe4 {[%clk 0:02:55]} 10. dxe4 {[%clk 0:03:01]}  e5 {[%clk 0:02:56]} 11. c3 {[%clk 0:03:01]}  Be6 {[%clk 0:02:54]} 12. Qc2 {[%clk 0:03:01]}  h6 {[%clk 0:02:54]} 13. Bf1 {[%clk 0:03:01]}  Bd6 {[%clk 0:02:52]} 14. Bc4 {[%clk 0:03:01]}  Qe7 {[%clk 0:02:52]} 15. Bxe6 {[%clk 0:03:01]}  Qxe6 {[%clk 0:02:53]} 16. Qb3 {[%clk 0:02:58]}  b6 {[%clk 0:02:50]} 17. Qxe6 {[%clk 0:02:58]}  Rxe6 {[%clk 0:02:51]} 18. Nc4 {[%clk 0:02:58]}  Rd8 {[%clk 0:02:44]} 19. Nfd2 {[%clk 0:02:57]}  Bc5 {[%clk 0:02:37]} 20. Nb3 {[%clk 0:02:57]}  Bf8 {[%clk 0:02:36]} 21. f3 {[%clk 0:02:58]}  Nd7 {[%clk 0:02:33]} 22. Be3 {[%clk 0:02:58]}  Ree8 {[%clk 0:02:08]} 23. Kf2 {[%clk 0:02:57]}  Ncb8 {[%clk 0:01:50]} 24. Red1 {[%clk 0:02:54]}  Na6 {[%clk 0:01:46]} 25. Ke2 {[%clk 0:02:51]}  f6 {[%clk 0:01:39]} 26. Rd5 {[%clk 0:02:42]}  Nac5 {[%clk 0:01:26]} 27. Nxc5 {[%clk 0:02:17]}  Nxc5 {[%clk 0:01:25]} 28. Bxc5 {[%clk 0:02:13]}  Rxd5 {[%clk 0:01:21]} 29. Bxf8 {[%clk 0:02:10]}  Rd7 {[%clk 0:01:03]} 30. Ba3 {[%clk 0:02:07]}  Red8 {[%clk 0:01:03]} 31. b3 {[%clk 0:02:06]}  Kf7 {[%clk 0:01:03]} 32. Bc1 {[%clk 0:02:05]}  Rd3 {[%clk 0:01:00]} 33. Bd2 {[%clk 0:02:05]}  Ke6 {[%clk 0:01:01]} 34. Rc1 {[%clk 0:02:05]}  g5 {[%clk 0:00:59]} 35. Be3 {[%clk 0:02:04]}  R3d7 {[%clk 0:00:52]} 36. h4 {[%clk 0:02:03]}  Rg8 {[%clk 0:00:45]} 37. g4 {[%clk 0:02:02]}  gxh4 {[%clk 0:00:43]} 38. Rh1 {[%clk 0:01:44]}  h5 {[%clk 0:00:41]} 39. gxh5 {[%clk 0:01:45]}  Rg2+ {[%clk 0:00:32]} 40. Bf2 {[%clk 0:01:45]}  Rh7 {[%clk 0:00:30]} 41. Rxh4 {[%clk 0:01:45]}  Rg5 {[%clk 0:00:23]} 42. h6 {[%clk 0:01:45]}  Rg6 {[%clk 0:00:23]} 43. Be3 {[%clk 0:01:46]}  Rg2+ {[%clk 0:00:24]} 44. Kf1 {[%clk 0:01:47]}  Rc2 {[%clk 0:00:23]} 45. Bd2 {[%clk 0:01:42]}  c6 {[%clk 0:00:21]} 46. Ke2 {[%clk 0:01:41]}  b5 {[%clk 0:00:20]} 47. axb5 {[%clk 0:01:41]}  cxb5 {[%clk 0:00:21]} 48. Kd3 {[%clk 0:01:05]}  Ra2 {[%clk 0:00:15]} 49. Ne3 {[%clk 0:01:06]}  a4 {[%clk 0:00:12]} 50. bxa4 {[%clk 0:01:06]}  bxa4 {[%clk 0:00:13]} 51. Nd5 {[%clk 0:01:06]}  a3 {[%clk 0:00:11]} 52. Rh1 {[%clk 0:01:07]}  Rb2 {[%clk 0:00:10]} 53. Ra1 {[%clk 0:01:04]}  a2 {[%clk 0:00:11]} 54. c4 {[%clk 0:01:05]}  f5 {[%clk 0:00:10]} 55. exf5+ {[%clk 0:00:56]}  Kxf5 {[%clk 0:00:10]} 56. Bc3 {[%clk 0:00:56]}  Rh2 {[%clk 0:00:08]} 57. Bd2 {[%clk 0:00:53]}  Ra7 {[%clk 0:00:08]} 58. c5 {[%clk 0:00:41]}  Ra3+ {[%clk 0:00:07]} 59. Nc3 {[%clk 0:00:41]}  Ke6 {[%clk 0:00:05]} 60. Rxa2 {[%clk 0:00:36]}  Rxa2 {[%clk 0:00:05]} 61. Nxa2 {[%clk 0:00:37]}  Kd5 {[%clk 0:00:05]} 62. Nc3+ {[%clk 0:00:29]}  Kxc5 {[%clk 0:00:05]} 63. Ne4+ {[%clk 0:00:30]}  Kd5 {[%clk 0:00:06]} 64. Bg5 {[%clk 0:00:29]}  Ke6 {[%clk 0:00:05]} 65. Be3 {[%clk 0:00:24]}  Kf5 {[%clk 0:00:05]} 66. Nf2 {[%clk 0:00:18]}  Ke6 {[%clk 0:00:02]} 67. Ke4 {[%clk 0:00:17]}  Kf6 {[%clk 0:00:00]} 68. Ng4+ {[%clk 0:00:17]} 1-0


[Site "https://www.chess.com"]

[Event "Titled Tuesday Blitz July 11 Late 2023"]
[White "Warmerdam, Max"]
[Black "Michalczak, Thomas"]
[WhiteFideId "1048104"]
[BlackFideId "4622634"]
[WhiteElo "2797"]
[BlackElo "2560"]
[Result "1-0"]
[Round "5"]
[TimeControl "180+2"]
[Date "2023.07.11"]
[WhiteClock "0:01:00"]
[BlackClock "0:00:08"]
[Board "36"]

1. d4 {[%clk 0:02:59]}  Nf6 {[%clk 0:02:58]} 2. c4 {[%clk 0:02:59]}  e6 {[%clk 0:02:58]} 3. Nf3 {[%clk 0:02:58]}  d5 {[%clk 0:02:58]} 4. cxd5 {[%clk 0:02:57]}  exd5 {[%clk 0:02:58]} 5. Nc3 {[%clk 0:02:58]}  c6 {[%clk 0:02:55]} 6. Bf4 {[%clk 0:02:58]}  Bd6 {[%clk 0:02:52]} 7. Bxd6 {[%clk 0:02:59]}  Qxd6 {[%clk 0:02:52]} 8. e3 {[%clk 0:03:00]}  Bf5 {[%clk 0:02:50]} 9. Nh4 {[%clk 0:03:00]}  Bg4 {[%clk 0:02:49]} 10. Qb3 {[%clk 0:02:59]}  Qe7 {[%clk 0:02:43]} 11. h3 {[%clk 0:02:56]}  Be6 {[%clk 0:02:41]} 12. Bd3 {[%clk 0:02:56]}  g6 {[%clk 0:02:41]} 13. O-O {[%clk 0:02:55]}  O-O {[%clk 0:02:39]} 14. Nf3 {[%clk 0:02:55]}  c5 {[%clk 0:02:16]} 15. Qa3 {[%clk 0:02:46]}  b6 {[%clk 0:02:11]} 16. Rac1 {[%clk 0:02:43]}  Nbd7 {[%clk 0:02:07]} 17. Rfd1 {[%clk 0:02:37]}  Rfc8 {[%clk 0:02:05]} 18. Ba6 {[%clk 0:02:34]}  Rd8 {[%clk 0:01:59]} 19. Bb7 {[%clk 0:02:23]}  Rab8 {[%clk 0:01:58]} 20. Bc6 {[%clk 0:02:23]}  Qd6 {[%clk 0:01:51]} 21. Bxd7 {[%clk 0:02:21]}  Rxd7 {[%clk 0:01:48]} 22. Nb5 {[%clk 0:02:17]}  Qe7 {[%clk 0:01:48]} 23. dxc5 {[%clk 0:02:17]}  bxc5 {[%clk 0:01:46]} 24. Nc3 {[%clk 0:02:05]}  c4 {[%clk 0:01:34]} 25. Qxe7 {[%clk 0:01:54]}  Rxe7 {[%clk 0:01:35]} 26. Rd2 {[%clk 0:01:30]}  Reb7 {[%clk 0:01:35]} 27. b3 {[%clk 0:01:25]}  cxb3 {[%clk 0:01:32]} 28. axb3 {[%clk 0:01:26]}  Rxb3 {[%clk 0:01:31]} 29. Nd4 {[%clk 0:01:27]}  Rb2 {[%clk 0:01:22]} 30. Rxb2 {[%clk 0:01:26]}  Rxb2 {[%clk 0:01:22]} 31. Ra1 {[%clk 0:01:27]}  Rb7 {[%clk 0:01:15]} 32. Ncb5 {[%clk 0:01:27]}  Ne4 {[%clk 0:01:04]} 33. Rxa7 {[%clk 0:01:23]}  Rxa7 {[%clk 0:01:04]} 34. Nxa7 {[%clk 0:01:24]}  h5 {[%clk 0:01:04]} 35. Nac6 {[%clk 0:01:23]}  Kf8 {[%clk 0:01:03]} 36. f3 {[%clk 0:01:21]}  Nd2 {[%clk 0:01:00]} 37. Kf2 {[%clk 0:01:20]}  Nc4 {[%clk 0:01:01]} 38. h4 {[%clk 0:01:17]}  Kg7 {[%clk 0:01:00]} 39. Nb4 {[%clk 0:01:16]}  Kf6 {[%clk 0:00:59]} 40. Ndc6 {[%clk 0:01:14]}  Nd6 {[%clk 0:00:52]} 41. Nd4 {[%clk 0:01:09]}  Nc4 {[%clk 0:00:50]} 42. Ne2 {[%clk 0:01:09]}  Ke5 {[%clk 0:00:43]} 43. Nf4 {[%clk 0:01:10]}  Nd6 {[%clk 0:00:28]} 44. Nc6+ {[%clk 0:01:03]}  Kf6 {[%clk 0:00:25]} 45. Nd4 {[%clk 0:01:02]}  Nc4 {[%clk 0:00:22]} 46. Ke2 {[%clk 0:01:02]}  Nd6 {[%clk 0:00:20]} 47. Kd3 {[%clk 0:01:01]}  Ke5 {[%clk 0:00:18]} 48. Ndxe6 {[%clk 0:01:00]}  fxe6 {[%clk 0:00:17]} 49. Nxg6+ {[%clk 0:01:01]}  Kf6 {[%clk 0:00:17]} 50. Nf4 {[%clk 0:01:00]}  Nf5 {[%clk 0:00:18]} 51. Nxh5+ {[%clk 0:00:59]}  Kg6 {[%clk 0:00:19]} 52. Nf4+ {[%clk 0:00:59]}  Kf6 {[%clk 0:00:19]} 53. h5 {[%clk 0:00:59]}  Kg5 {[%clk 0:00:15]} 54. Nxe6+ {[%clk 0:00:57]}  Kxh5 {[%clk 0:00:16]} 55. Nf4+ {[%clk 0:00:57]}  Kg5 {[%clk 0:00:16]} 56. Nxd5 {[%clk 0:00:58]}  Nh4 {[%clk 0:00:16]} 57. Nf4 {[%clk 0:00:57]}  Kf5 {[%clk 0:00:17]} 58. Ke2 {[%clk 0:00:57]}  Ke5 {[%clk 0:00:17]} 59. Kf2 {[%clk 0:00:58]}  Nf5 {[%clk 0:00:17]} 60. g4 {[%clk 0:00:58]}  Nd6 {[%clk 0:00:15]} 61. Nd3+ {[%clk 0:00:58]}  Kf6 {[%clk 0:00:14]} 62. e4 {[%clk 0:00:59]}  Kg5 {[%clk 0:00:11]} 63. Kg3 {[%clk 0:00:59]}  Nc4 {[%clk 0:00:08]} 64. f4+ {[%clk 0:01:00]} 1-0


[Site "https://www.chess.com"]

[Event "Titled Tuesday Blitz July 11 Late 2023"]
[White "Perez Ponsa, Federico"]
[Black "Moral Garcia, Serafin"]
[WhiteFideId "117927"]
[BlackFideId "2201925"]
[WhiteElo "2791"]
[BlackElo "2557"]
[Result "1-0"]
[Round "5"]
[TimeControl "180+2"]
[Date "2023.07.11"]
[WhiteClock "0:00:37"]
[BlackClock "0:00:19"]
[Board "37"]

1. e4 {[%clk 0:02:56]}  e5 {[%clk 0:03:00]} 2. Nf3 {[%clk 0:02:56]}  Nf6 {[%clk 0:03:00]} 3. Nc3 {[%clk 0:02:56]}  Nc6 {[%clk 0:02:59]} 4. Bb5 {[%clk 0:02:56]}  Bb4 {[%clk 0:02:58]} 5. O-O {[%clk 0:02:53]}  O-O {[%clk 0:02:57]} 6. Bxc6 {[%clk 0:02:54]}  dxc6 {[%clk 0:02:57]} 7. d3 {[%clk 0:02:54]}  Bd6 {[%clk 0:02:57]} 8. Ne2 {[%clk 0:02:54]}  Nd7 {[%clk 0:02:57]} 9. Ng3 {[%clk 0:02:54]}  Re8 {[%clk 0:02:57]} 10. Be3 {[%clk 0:02:52]}  Nf8 {[%clk 0:02:57]} 11. Qd2 {[%clk 0:02:52]}  Ne6 {[%clk 0:02:56]} 12. h3 {[%clk 0:02:50]}  f6 {[%clk 0:02:52]} 13. Nf5 {[%clk 0:02:49]}  Bc5 {[%clk 0:02:51]} 14. Bxc5 {[%clk 0:02:46]}  Nxc5 {[%clk 0:02:50]} 15. N3h4 {[%clk 0:02:43]}  g6 {[%clk 0:02:28]} 16. Ng3 {[%clk 0:02:38]}  Ne6 {[%clk 0:02:28]} 17. Ne2 {[%clk 0:02:36]}  Qe7 {[%clk 0:02:20]} 18. f4 {[%clk 0:02:34]}  exf4 {[%clk 0:02:20]} 19. Nxf4 {[%clk 0:02:35]}  Nxf4 {[%clk 0:02:17]} 20. Qxf4 {[%clk 0:02:36]}  Kg7 {[%clk 0:02:13]} 21. Rf2 {[%clk 0:02:34]}  Qd6 {[%clk 0:01:48]} 22. Qd2 {[%clk 0:02:26]}  c5 {[%clk 0:01:37]} 23. Raf1 {[%clk 0:02:26]}  Rf8 {[%clk 0:01:37]} 24. Nf3 {[%clk 0:02:25]}  Bd7 {[%clk 0:01:33]} 25. Qc3 {[%clk 0:02:23]}  Rae8 {[%clk 0:01:32]} 26. Nd2 {[%clk 0:02:22]}  Qe5 {[%clk 0:01:23]} 27. Qa3 {[%clk 0:02:17]}  a6 {[%clk 0:01:14]} 28. Nc4 {[%clk 0:02:17]}  Qe7 {[%clk 0:01:13]} 29. Qc3 {[%clk 0:02:16]}  Be6 {[%clk 0:00:47]} 30. Ne3 {[%clk 0:02:14]}  b5 {[%clk 0:00:41]} 31. a3 {[%clk 0:02:10]}  Rf7 {[%clk 0:00:40]} 32. b4 {[%clk 0:02:04]}  cxb4 {[%clk 0:00:37]} 33. axb4 {[%clk 0:02:05]}  Ref8 {[%clk 0:00:35]} 34. Ra1 {[%clk 0:02:04]}  Qd6 {[%clk 0:00:35]} 35. d4 {[%clk 0:01:57]}  Kg8 {[%clk 0:00:35]} 36. d5 {[%clk 0:01:55]}  Bc8 {[%clk 0:00:35]} 37. Qc5 {[%clk 0:01:54]}  Bb7 {[%clk 0:00:34]} 38. c4 {[%clk 0:01:51]}  Re7 {[%clk 0:00:30]} 39. Qxd6 {[%clk 0:01:50]}  cxd6 {[%clk 0:00:30]} 40. c5 {[%clk 0:01:43]}  Rxe4 {[%clk 0:00:28]} 41. Ra3 {[%clk 0:01:44]}  Rd8 {[%clk 0:00:27]} 42. Ng4 {[%clk 0:01:44]}  Kg7 {[%clk 0:00:26]} 43. Nxf6 {[%clk 0:01:40]}  Rxb4 {[%clk 0:00:26]} 44. Re3 {[%clk 0:01:37]}  Bc8 {[%clk 0:00:22]} 45. Re7+ {[%clk 0:01:37]}  Kh6 {[%clk 0:00:22]} 46. cxd6 {[%clk 0:01:30]}  Rxd6 {[%clk 0:00:22]} 47. Rxh7+ {[%clk 0:01:17]}  Kg5 {[%clk 0:00:22]} 48. g3 {[%clk 0:00:51]}  Rxf6 {[%clk 0:00:21]} 49. h4+ {[%clk 0:00:51]}  Kg4 {[%clk 0:00:22]} 50. Rxf6 {[%clk 0:00:50]}  Kxg3 {[%clk 0:00:22]} 51. Rxg6+ {[%clk 0:00:48]}  Bg4 {[%clk 0:00:23]} 52. Rf7 {[%clk 0:00:43]}  Rd4 {[%clk 0:00:21]} 53. h5 {[%clk 0:00:41]}  Rxd5 {[%clk 0:00:20]} 54. h6 {[%clk 0:00:42]}  Rh5 {[%clk 0:00:20]} 55. h7 {[%clk 0:00:40]}  Kh3 {[%clk 0:00:20]} 56. Rg8 {[%clk 0:00:38]}  Be6 {[%clk 0:00:20]} 57. h8=Q {[%clk 0:00:36]}  Rxh8 {[%clk 0:00:19]} 58. Rxh8+ {[%clk 0:00:36]}  Kg4 {[%clk 0:00:19]} 59. Rg8+ {[%clk 0:00:36]}  Kh5 {[%clk 0:00:19]} 60. Rh7# {[%clk 0:00:37]} 1-0


[Site "https://www.chess.com"]

[Event "Titled Tuesday Blitz July 11 Late 2023"]
[White "Sidletskyi, Ivan"]
[Black "Tristan, Leonardo"]
[WhiteFideId "14156024"]
[BlackFideId "113816"]
[WhiteElo "2549"]
[BlackElo "2791"]
[Result "1/2-1/2"]
[Round "5"]
[TimeControl "180+2"]
[Date "2023.07.11"]
[WhiteClock "0:00:07"]
[BlackClock "0:00:04"]
[Board "38"]

1. e4 {[%clk 0:03:00]}  d5 {[%clk 0:03:00]} 2. exd5 {[%clk 0:03:00]}  Qxd5 {[%clk 0:03:01]} 3. Nc3 {[%clk 0:03:01]}  Qa5 {[%clk 0:03:01]} 4. d4 {[%clk 0:03:01]}  Nf6 {[%clk 0:03:01]} 5. Nf3 {[%clk 0:03:01]}  Bf5 {[%clk 0:03:02]} 6. Bc4 {[%clk 0:02:59]}  e6 {[%clk 0:03:02]} 7. O-O {[%clk 0:02:57]}  Bb4 {[%clk 0:03:02]} 8. Bd2 {[%clk 0:02:54]}  Nc6 {[%clk 0:03:02]} 9. a3 {[%clk 0:02:52]}  Bxc3 {[%clk 0:03:02]} 10. Bxc3 {[%clk 0:02:53]}  Qb6 {[%clk 0:03:02]} 11. a4 {[%clk 0:02:46]}  a5 {[%clk 0:03:02]} 12. Qd2 {[%clk 0:02:26]}  O-O {[%clk 0:02:54]} 13. Rfe1 {[%clk 0:02:17]}  Rfd8 {[%clk 0:02:19]} 14. Rad1 {[%clk 0:01:30]}  Nb4 {[%clk 0:01:24]} 15. Bxb4 {[%clk 0:01:06]}  Qxb4 {[%clk 0:01:25]} 16. Bb3 {[%clk 0:00:53]}  h6 {[%clk 0:01:15]} 17. Qxb4 {[%clk 0:00:47]}  axb4 {[%clk 0:01:16]} 18. Ne5 {[%clk 0:00:47]}  Be4 {[%clk 0:01:01]} 19. c4 {[%clk 0:00:37]}  bxc3 {[%clk 0:00:50]} 20. bxc3 {[%clk 0:00:38]}  b6 {[%clk 0:00:49]} 21. f3 {[%clk 0:00:36]}  Bb7 {[%clk 0:00:46]} 22. Kf2 {[%clk 0:00:30]}  Kf8 {[%clk 0:00:45]} 23. g4 {[%clk 0:00:26]}  Nd5 {[%clk 0:00:45]} 24. c4 {[%clk 0:00:21]}  Nb4 {[%clk 0:00:43]} 25. f4 {[%clk 0:00:16]}  Nc6 {[%clk 0:00:43]} 26. Ke3 {[%clk 0:00:09]}  Na5 {[%clk 0:00:38]} 27. Bc2 {[%clk 0:00:07]}  Ba6 {[%clk 0:00:37]} 28. Bd3 {[%clk 0:00:05]}  f6 {[%clk 0:00:33]} 29. Ng6+ {[%clk 0:00:03]}  Kf7 {[%clk 0:00:33]} 30. f5 {[%clk 0:00:04]}  Bxc4 {[%clk 0:00:22]} 31. fxe6+ {[%clk 0:00:04]}  Bxe6 {[%clk 0:00:20]} 32. Nf4 {[%clk 0:00:04]}  Bc4 {[%clk 0:00:18]} 33. Bg6+ {[%clk 0:00:04]}  Kg8 {[%clk 0:00:17]} 34. Kf2 {[%clk 0:00:05]}  Bb3 {[%clk 0:00:15]} 35. Rd3 {[%clk 0:00:03]}  Bxa4 {[%clk 0:00:14]} 36. Re7 {[%clk 0:00:03]}  Rd7 {[%clk 0:00:13]} 37. Rde3 {[%clk 0:00:02]}  Rxe7 {[%clk 0:00:12]} 38. Rxe7 {[%clk 0:00:03]}  Nc6 {[%clk 0:00:09]} 39. Rxc7 {[%clk 0:00:03]}  Nxd4 {[%clk 0:00:09]} 40. Ke3 {[%clk 0:00:02]}  Nb5 {[%clk 0:00:08]} 41. Rd7 {[%clk 0:00:02]}  Na3 {[%clk 0:00:08]} 42. Re7 {[%clk 0:00:02]}  Nc4+ {[%clk 0:00:08]} 43. Kd4 {[%clk 0:00:02]}  Bb3 {[%clk 0:00:06]} 44. Ne6 {[%clk 0:00:02]}  Nd6 {[%clk 0:00:06]} 45. Rxg7+ {[%clk 0:00:02]}  Kh8 {[%clk 0:00:07]} 46. Re7 {[%clk 0:00:02]}  Bxe6 {[%clk 0:00:06]} 47. Rxe6 {[%clk 0:00:03]}  Rd8 {[%clk 0:00:06]} 48. Ke3 {[%clk 0:00:02]}  Kg7 {[%clk 0:00:06]} 49. Bd3 {[%clk 0:00:02]}  Re8 {[%clk 0:00:06]} 50. Rxe8 {[%clk 0:00:02]}  Nxe8 {[%clk 0:00:07]} 51. Kf4 {[%clk 0:00:03]}  Kf7 {[%clk 0:00:06]} 52. h4 {[%clk 0:00:04]}  Nd6 {[%clk 0:00:06]} 53. g5 {[%clk 0:00:05]}  fxg5+ {[%clk 0:00:06]} 54. hxg5 {[%clk 0:00:05]}  h5 {[%clk 0:00:07]} 55. Be2 {[%clk 0:00:05]}  Kg6 {[%clk 0:00:07]} 56. Bd3+ {[%clk 0:00:05]}  Kg7 {[%clk 0:00:07]} 57. Be2 {[%clk 0:00:06]}  h4 {[%clk 0:00:08]} 58. Kg4 {[%clk 0:00:05]}  Nf7 {[%clk 0:00:05]} 59. Kxh4 {[%clk 0:00:06]}  Ne5 {[%clk 0:00:05]} 60. Kg3 {[%clk 0:00:06]}  Nc6 {[%clk 0:00:06]} 61. Kf4 {[%clk 0:00:07]}  Nd4 {[%clk 0:00:06]} 62. Bd3 {[%clk 0:00:07]}  Nb3 {[%clk 0:00:06]} 63. Ke5 {[%clk 0:00:07]}  Nc5 {[%clk 0:00:07]} 64. Bc4 {[%clk 0:00:06]}  Na4 {[%clk 0:00:06]} 65. Kd5 {[%clk 0:00:06]}  Kg6 {[%clk 0:00:06]} 66. Kc6 {[%clk 0:00:06]}  Kxg5 {[%clk 0:00:05]} 67. Bb3 {[%clk 0:00:07]}  Nc5 {[%clk 0:00:04]} 68. Kxb6 {[%clk 0:00:07]} 1/2-1/2


[Site "https://www.chess.com"]

[Event "Titled Tuesday Blitz July 11 Late 2023"]
[White "Schmakel, Sam"]
[Black "Keleberda, Tymur"]
[WhiteFideId "2039311"]
[BlackFideId "14174294"]
[WhiteElo "2791"]
[BlackElo "2553"]
[Result "1-0"]
[Round "5"]
[TimeControl "180+2"]
[Date "2023.07.11"]
[WhiteClock "0:00:38"]
[BlackClock "0:00:09"]
[Board "39"]

1. d4 {[%clk 0:03:00]}  Nf6 {[%clk 0:02:59]} 2. c4 {[%clk 0:02:57]}  e6 {[%clk 0:02:59]} 3. Nf3 {[%clk 0:02:52]}  b6 {[%clk 0:02:59]} 4. g3 {[%clk 0:02:50]}  Bb7 {[%clk 0:02:59]} 5. Bg2 {[%clk 0:02:50]}  Be7 {[%clk 0:02:59]} 6. O-O {[%clk 0:02:51]}  O-O {[%clk 0:03:00]} 7. Re1 {[%clk 0:02:48]}  Na6 {[%clk 0:03:00]} 8. Ne5 {[%clk 0:02:45]}  Qc8 {[%clk 0:02:23]} 9. Nc3 {[%clk 0:02:37]}  Bxg2 {[%clk 0:02:21]} 10. Kxg2 {[%clk 0:02:37]}  Qb7+ {[%clk 0:02:08]} 11. e4 {[%clk 0:02:07]}  d5 {[%clk 0:02:02]} 12. exd5 {[%clk 0:02:04]}  exd5 {[%clk 0:02:02]} 13. Qf3 {[%clk 0:01:52]}  Nb4 {[%clk 0:02:00]} 14. Re2 {[%clk 0:01:50]}  Rae8 {[%clk 0:01:12]} 15. a3 {[%clk 0:01:47]}  Nc6 {[%clk 0:01:10]} 16. Nxc6 {[%clk 0:01:47]}  Qxc6 {[%clk 0:01:10]} 17. cxd5 {[%clk 0:01:48]}  Qd7 {[%clk 0:01:06]} 18. Bf4 {[%clk 0:01:23]}  Bd6 {[%clk 0:00:58]} 19. Be5 {[%clk 0:01:15]}  Ng4 {[%clk 0:00:40]} 20. Rae1 {[%clk 0:01:13]}  h5 {[%clk 0:00:26]} 21. h3 {[%clk 0:01:10]}  Nxe5 {[%clk 0:00:26]} 22. dxe5 {[%clk 0:01:11]}  Bc5 {[%clk 0:00:26]} 23. Qxh5 {[%clk 0:00:57]}  Bd4 {[%clk 0:00:25]} 24. Rd1 {[%clk 0:00:51]}  Bxc3 {[%clk 0:00:23]} 25. bxc3 {[%clk 0:00:51]}  Qb5 {[%clk 0:00:20]} 26. Re4 {[%clk 0:00:49]}  f6 {[%clk 0:00:17]} 27. e6 {[%clk 0:00:45]}  Re7 {[%clk 0:00:08]} 28. Rh4 {[%clk 0:00:38]}  Rxe6 {[%clk 0:00:09]} 1-0


[Site "https://www.chess.com"]